fUST/lending_fUST_20250130
["ID","MTS","AMOUNT","RATE_DAILY","PERIOD"]
[350927642,1738209034080,-490.2042961,0.00016438,2]
[350927643,1738209034090,-500.0,0.00016438,2]
[350927644,1738209034100,-508.3772174,0.00016438,2]
[350927645,1738209034109,-615.23,0.00016438,2]
[350927646,1738209034118,-500.0,0.00016438,2]
[350927647,1738209034128,-151.0,0.00016438,2]
[350927648,1738209034137,-505.29631116,0.00016438,2]
[350927649,1738209034148,-509.29781476,0.00016438,2]
[350927650,1738209034158,-515.13078531,0.00016438,2]
[350927651,1738209034168,-151.0,0.00016438,2]
[350927652,1738209034177,-511.10257172,0.00016438,2]
[350927653,1738209034187,-151.0,0.00016438,2]
[350927654,1738209034197,-511.92829638,0.00016438,2]
[350927655,1738209034207,-519.73276201,0.00016438,2]
[350927656,1738209034217,-533.94,0.00016438,2]
[350927657,1738209034227,-500.0,0.00016438,2]
[350927658,1738209034237,-151.0,0.00016438,2]
[350927659,1738209034246,-500.0,0.00016438,2]
[350927660,1738209034256,-1081.71,0.00016438,2]
[350927661,1738209034266,-510.18636765,0.00016438,2]
[350927662,1738209034276,-500.0,0.00016438,2]
[350927663,1738209034285,-517.11561209,0.00016438,2]
[350927664,1738209034295,-500.0,0.00016438,2]
[350927665,1738209034308,-500.0,0.00016438,2]
[350927666,1738209034318,-500.0,0.00016438,2]
[350927667,1738209034328,-500.0,0.00016438,2]
[350927668,1738209034338,-500.0,0.00016438,2]
[350927669,1738209034348,-506.80771514,0.00016438,2]
[350927670,1738209034357,-578.58,0.00016438,2]
[350927671,1738209034367,-506.20603404,0.00016438,2]
[350927672,1738209034377,-18833.68,0.00016438,2]
[350927673,1738209034388,-500.0,0.00016438,2]
[350927674,1738209034400,-240.186008,0.00016438,2]
[350927675,1738209034410,-506.73165045,0.00016438,2]
[350927676,1738209034419,-1435.56,0.00016438,2]
[350927677,1738209034429,-527.65528728,0.00016438,2]
[350927678,1738209034439,-240.186008,0.00016438,2]
[350927679,1738209034448,-1106.24,0.00016438,2]
[350927680,1738209034458,-509.61059942,0.00016438,2]
[350927681,1738209034467,-509.43499841,0.00016438,2]
[350927682,1738209034478,-2144.9,0.00016438,2]
[350927683,1738209034487,-510.10861634,0.00016438,2]
[350927684,1738209034497,-505.04106807,0.00016438,2]
[350927685,1738209034507,-500.0,0.00016438,2]
[350927686,1738209034516,-506.0992306,0.00016438,2]
[350927687,1738209034525,-500.0,0.00016438,2]
[350927688,1738209034535,-707.88,0.00016438,2]
[350927689,1738209034545,-500.0,0.00016438,2]
[350927690,1738209034555,-899.25,0.00016438,2]
[350927691,1738209034565,-404.26855571,0.00016438,2]
[350927692,1738209034575,-151.0,0.00016438,2]
[350927693,1738209034584,-467.80254981,0.00016438,2]
[350927694,1738209034593,-500.0,0.00016438,2]
[350927695,1738209034603,-157.613886,0.00016438,2]
[350927696,1738209034612,-500.0,0.00016438,2]
[350927697,1738209034621,-718.31,0.00016438,2]
[350927698,1738209034630,-151.0,0.00016438,2]
[350927699,1738209034639,-500.0,0.00016438,2]
[350927700,1738209034650,-500.0,0.00016438,2]
[350927701,1738209034659,-500.0,0.00016438,2]
[350927702,1738209034668,-722.09,0.00016438,2]
[350927703,1738209034678,-151.0,0.00016438,2]
[350927704,1738209034687,-503.95085173,0.00016438,2]
[350927705,1738209034696,-507.58933286,0.00016438,2]
[350927706,1738209034706,-500.0,0.00016438,2]
[350927707,1738209034715,-500.0,0.00016438,2]
[350927708,1738209034725,-500.0,0.00016438,2]
[350927709,1738209034734,-1032.93,0.00016438,2]
[350927710,1738209034744,-507.11238265,0.00016438,2]
[350927711,1738209034753,-500.0,0.00016438,2]
[350927712,1738209034762,-255.34923948,0.00016438,2]
[350927713,1738209034771,-500.0,0.00016438,2]
[350927714,1738209034781,-1972.78,0.00016438,2]
[350927715,1738209034790,-500.0,0.00016438,2]
[350927716,1738209034799,-506.61203377,0.00016438,2]
[350927717,1738209034809,-642.024491,0.00016438,2]
[350927718,1738209034818,-504.78308096,0.00016438,2]
[350927719,1738209034828,-642.024491,0.00016438,2]
[350927720,1738209034837,-1029.2,0.00016438,2]
[350927721,1738209034848,-508.26274069,0.00016438,2]
[350927722,1738209034858,-546.89,0.00016438,2]
[350927723,1738209034867,-1012.49,0.00016438,2]
[350927724,1738209034877,-151.0,0.00016438,2]
[350927725,1738209034887,-2284.74,0.00016438,2]
[350927726,1738209034897,-1276.44,0.00016438,2]
[350927727,1738209034906,-151.0,0.00016438,2]
[350927728,1738209034915,-507.83850901,0.00016438,2]
[350927729,1738209034924,-151.0,0.00016438,2]
[350927730,1738209034933,-502.951678,0.00016438,2]
[350927731,1738209034942,-6710.07,0.00016438,2]
[350927732,1738209034951,-504.00560826,0.00016438,2]
[350927733,1738209034961,-667.53,0.00016438,2]
[350927734,1738209034970,-977.82,0.00016438,2]
[350927735,1738209034979,-500.0,0.00016438,2]
[350927736,1738209034989,-500.0,0.00016438,2]
[350927737,1738209034998,-1736.14,0.00016438,2]
[350927738,1738209035007,-151.0,0.00016438,2]
[350927739,1738209035016,-500.0,0.00016438,2]
[350927740,1738209035025,-1102.24,0.00016438,2]
[350927741,1738209035035,-500.0,0.00016438,2]
[350927742,1738209035044,-500.0,0.00016438,2]
[350927743,1738209035157,-500.0,0.00016438,2]
[350927744,1738209035166,-500.0,0.00016438,2]
[350927745,1738209035176,-500.0,0.00016438,2]
[350927746,1738209035185,-500.0,0.00016438,2]
[350927747,1738209035194,-500.0,0.00016438,2]
[350927748,1738209035203,-500.0,0.00016438,2]
[350927749,1738209035213,-510.54166208,0.00016438,2]
[350927750,1738209035223,-141.78599727,0.00016438,2]
[350927751,1738209035238,-370.75064579,0.00016438,2]
[350927752,1738209035248,-500.0,0.00016438,2]
[350927753,1738209035258,-151.0,0.00016438,2]
[350927754,1738209035268,-246.58814573,0.00016438,2]
[350927755,1738209035283,-253.41185427,0.00016438,2]
[350927756,1738209035292,-510.73974402,0.00016438,2]
[350927757,1738209035304,-504.76130007,0.00016438,2]
[350927758,1738209035313,-500.0,0.00016438,2]
[350927759,1738209035323,-516.92843078,0.00016438,2]
[350927760,1738209035332,-45.32747664,0.00016438,2]
[350927761,1738209035344,-454.67252336,0.00016438,2]
[350927762,1738209035354,-156.924049,0.00016438,2]
[350927763,1738209035363,-506.67149873,0.00016438,2]
[350927764,1738209035373,-3441.28,0.00016438,2]
[350927765,1738209035384,-156.924049,0.00016438,2]
[350927766,1738209035394,-500.0,0.00016438,2]
[350927767,1738209035405,-500.0,0.00016438,2]
[350927768,1738209035415,-500.0,0.00016438,2]
[350927769,1738209035424,-151.0,0.00016438,2]
[350927770,1738209035433,-508.10472117,0.00016438,2]
[350927771,1738209035443,-987.75,0.00016438,2]
[350927772,1738209035452,-118.57570317,0.00016438,2]
[350927807,1738209038352,-1347.74346877,0.00016438,2]
[350927810,1738209038364,-277.46854865,0.00016438,2]
[350927814,1738209038410,-2504.12227941,0.00016438,2]
[350927816,1738209038420,-3427.15,0.00016438,2]
[350927818,1738209038430,-151.0,0.00016438,2]
[350927820,1738209038440,-151.0,0.00016438,2]
[350927822,1738209038450,-500.0,0.00016438,2]
[350927824,1738209038459,-2567.23011141,0.00016438,2]
[350927826,1738209038471,-1504.44354021,0.00016438,2]
[350927829,1738209038491,-1312.5676251,0.00016438,2]
[350927833,1738209038522,-1348.82872328,0.00016438,2]
[350927835,1738209038532,-208.363582,0.00016438,2]
[350927837,1738209038542,-300.0,0.000165,6]
[350927839,1738209038552,-395.0,0.00016519,2]
[350927841,1738209038561,-151.0,0.00016519,2]
[350927844,1738209038573,-151.0,0.00016519,2]
[350927845,1738209038583,-208.363582,0.00016519,2]
[350927848,1738209038594,-152.0,0.00016525,2]
[350927850,1738209038603,-500.0,0.00016566,2]
[350927852,1738209038613,-500.0,0.00016566,2]
[350927855,1738209038624,-500.0,0.00016566,2]
[350927857,1738209038634,-500.0,0.00016566,2]
[350927859,1738209038644,-342.59328509,0.00016567,2]
[350927861,1738209038654,-500.0,0.00016567,2]
[350927863,1738209038663,-379.14171908,0.00016567,2]
[350927865,1738209038672,-500.0,0.00016567,2]
[350927867,1738209038683,-500.0,0.00016567,2]
[350927869,1738209038692,-500.0,0.00016567,2]
[350927871,1738209038702,-500.0,0.00016567,2]
[350927873,1738209038711,-500.0,0.00016567,2]
[350927875,1738209038721,-500.0,0.00016567,2]
[350927877,1738209038731,-500.0,0.00016567,2]
[350927879,1738209038740,-500.0,0.00016567,2]
[350927881,1738209038749,-500.0,0.00016567,2]
[350927883,1738209038758,-500.0,0.00016567,2]
[350927885,1738209038767,-500.0,0.00016567,2]
[350927887,1738209038777,-500.0,0.00016567,2]
[350927889,1738209038786,-500.0,0.00016567,2]
[350927891,1738209038796,-500.0,0.00016567,2]
[350927893,1738209038806,-500.0,0.00016567,2]
[350927895,1738209038815,-500.0,0.00016567,2]
[350927897,1738209038825,-500.0,0.00016567,2]
[350927899,1738209038834,-500.0,0.00016567,2]
[350927901,1738209038843,-500.0,0.00016567,2]
[350927903,1738209038853,-500.0,0.00016567,2]
[350927905,1738209038862,-500.0,0.00016567,2]
[350927907,1738209038871,-500.0,0.00016567,2]
[350927909,1738209038880,-500.0,0.00016567,2]
[350927911,1738209038889,-500.0,0.00016567,2]
[350927913,1738209038900,-500.0,0.00016567,2]
[350927915,1738209038912,-500.0,0.00016567,2]
[350927916,1738209038922,-500.0,0.00016567,2]
[350927918,1738209038931,-500.0,0.00016567,2]
[350927920,1738209038941,-500.0,0.00016567,2]
[350927922,1738209038950,-500.0,0.00016567,2]
[350927924,1738209038960,-500.0,0.00016567,2]
[350927926,1738209038970,-500.0,0.00016567,2]
[350927928,1738209038979,-500.0,0.00016567,2]
[350927930,1738209038988,-500.0,0.00016567,2]
[350927932,1738209038998,-500.0,0.00016567,2]
[350927934,1738209039008,-500.0,0.00016567,2]
[350927936,1738209039017,-500.0,0.00016567,2]
[350927938,1738209039027,-500.0,0.00016567,2]
[350927940,1738209039036,-500.0,0.00016567,2]
[350927941,1738209039046,-500.0,0.00016567,2]
[350927942,1738209039055,-500.0,0.00016567,2]
[350927943,1738209039065,-500.0,0.00016567,2]
[350927944,1738209039074,-500.0,0.00016567,2]
[350927945,1738209039084,-500.0,0.00016567,2]
[350927946,1738209039093,-500.0,0.00016567,2]
[350927947,1738209039103,-500.0,0.00016567,2]
[350927948,1738209039113,-500.0,0.00016567,2]
[350927949,1738209039123,-500.0,0.00016567,2]
[350927950,1738209039132,-500.0,0.00016567,2]
[350927951,1738209039142,-500.0,0.00016567,2]
[350927952,1738209039156,-500.0,0.00016567,2]
[350927953,1738209039166,-500.0,0.00016567,2]
[350927954,1738209039175,-500.0,0.00016567,2]
[350927955,1738209039184,-500.0,0.00016567,2]
[350927956,1738209039205,-367.57807928,0.00016567,2]
[350927957,1738209039219,-500.0,0.00016567,2]
[350927958,1738209039229,-500.0,0.00016567,2]
[350927959,1738209039239,-500.0,0.00016567,2]
[350927960,1738209039249,-500.0,0.00016567,2]
[350927961,1738209039259,-500.0,0.00016567,2]
[350927962,1738209039270,-500.0,0.00016567,2]
[350927963,1738209039280,-500.0,0.00016567,2]
[350927964,1738209039290,-500.0,0.00016567,2]
[350927965,1738209039304,-500.0,0.00016567,2]
[350927966,1738209039315,-500.0,0.00016567,2]
[350927967,1738209039327,-500.0,0.00016567,2]
[350927968,1738209039338,-500.0,0.00016567,2]
[350927969,1738209039348,-500.0,0.00016567,2]
[350927970,1738209039359,-500.0,0.00016567,2]
[350927971,1738209039369,-500.0,0.00016567,2]
[350927972,1738209039379,-500.0,0.00016567,2]
[350927973,1738209039388,-500.0,0.00016567,2]
[350927974,1738209039398,-500.0,0.00016567,2]
[350927975,1738209039409,-550.0,0.00016567,2]
[350927976,1738209039419,-151.0,0.00016567,2]
[350927977,1738209039429,-151.0,0.00016567,2]
[350927978,1738209039438,-151.0,0.00016567,2]
[350927979,1738209039448,-151.0,0.00016567,2]
[350927980,1738209039458,-240.186008,0.00016567,2]
[350927981,1738209039468,-240.186008,0.00016567,2]
[350927982,1738209039478,-151.0,0.00016567,2]
[350927983,1738209039488,-151.0,0.00016567,2]
[350927984,1738209039498,-151.0,0.00016567,2]
[350927985,1738209039507,-642.024491,0.00016567,2]
[350927986,1738209039517,-642.024491,0.00016567,2]
[350927987,1738209039526,-151.0,0.00016567,2]
[350927988,1738209039536,-274.01677,0.00016567,2]
[350927989,1738209039547,-166.068438,0.00016567,2]
[350927990,1738209039557,-151.0,0.00016567,2]
[350927991,1738209039567,-151.0,0.00016567,2]
[350927992,1738209039577,-156.924049,0.00016567,2]
[350927993,1738209039587,-156.924049,0.00016567,2]
[350927994,1738209039597,-151.0,0.00016567,2]
[350927995,1738209039607,-208.363582,0.00016567,2]
[350927996,1738209039617,-161.53148462,0.00016569,2]
[350927997,1738209039627,-500.0,0.00016569,2]
[350927998,1738209039638,-500.0,0.00016569,2]
[350927999,1738209039648,-236.55285455,0.00016569,2]
[350928000,1738209039660,-500.0,0.00016569,2]
[350928001,1738209039670,-500.0,0.00016569,2]
[350928002,1738209039680,-500.0,0.00016569,2]
[350928003,1738209039690,-12592.13778454,0.0001657,5]
[350928004,1738209039700,-28012.20729232,0.0001657,5]
[350928005,1738209039716,-531.96040214,0.0001657,5]
[350928024,1738209040545,-208.363582,0.00016438,2]
[350928025,1738209040556,-208.363582,0.00016519,2]
[350928026,1738209040567,-208.363582,0.00016567,2]
[350928027,1738209040577,-88.86627085,0.0001657,5]
[350928028,1738209040591,-34464.91209651,0.0001657,5]
[350928029,1738209040609,-48774.21943455,0.0001657,5]
[350928030,1738209040622,-78233.05451196,0.0001657,2]
[350928045,1738209044951,-2546.73866858,0.00016274,2]
[350928046,1738209044960,-500.0,0.00016438,2]
[350928047,1738209044970,-2062.54,0.00016438,2]
[350928048,1738209044980,-48765.33904019,0.0001657,2]
[350928053,1738209046495,-110467.00179323,0.0001657,2]
[350928054,1738209046506,-151.0,0.0001657,2]
[350928055,1738209046516,-151.0,0.0001657,2]
[350928056,1738209046526,-151.0,0.0001657,2]
[350928057,1738209046536,-151.0,0.0001657,2]
[350928058,1738209046546,-151.0,0.0001657,2]
[350928059,1738209046556,-151.0,0.0001657,2]
[350928060,1738209046566,-153.7041,0.0001657,2]
[350928061,1738209046577,-151.0,0.0001657,2]
[350928062,1738209046587,-151.0,0.0001657,2]
[350928063,1738209046596,-207.204648,0.0001657,2]
[350928064,1738209046606,-240.186008,0.0001657,2]
[350928065,1738209046616,-240.186008,0.0001657,2]
[350928066,1738209046626,-240.186008,0.0001657,2]
[350928067,1738209046636,-240.186008,0.0001657,2]
[350928068,1738209046645,-151.0,0.0001657,2]
[350928069,1738209046656,-151.0,0.0001657,2]
[350928070,1738209046665,-151.0,0.0001657,2]
[350928071,1738209046675,-151.0,0.0001657,2]
[350928072,1738209046685,-151.0,0.0001657,2]
[350928073,1738209046695,-151.0,0.0001657,2]
[350928074,1738209046705,-642.024491,0.0001657,2]
[350928075,1738209046715,-642.024491,0.0001657,2]
[350928076,1738209046725,-642.024491,0.0001657,2]
[350928077,1738209046735,-642.024491,0.0001657,2]
[350928078,1738209046745,-151.0,0.0001657,2]
[350928079,1738209046755,-151.0,0.0001657,2]
[350928080,1738209046766,-151.0,0.0001657,2]
[350928081,1738209046776,-151.0,0.0001657,2]
[350928082,1738209046786,-156.924049,0.0001657,2]
[350928083,1738209046796,-156.924049,0.0001657,2]
[350928084,1738209046806,-156.924049,0.0001657,2]
[350928085,1738209046816,-156.924049,0.0001657,2]
[350928086,1738209046825,-208.363582,0.0001657,2]
[350928087,1738209046835,-208.363582,0.0001657,2]
[350928088,1738209046845,-208.363582,0.0001657,2]
[350928089,1738209046854,-208.363582,0.0001657,2]
[350928090,1738209046865,-216.794034,0.00016572,2]
[350928091,1738209046874,-151.0,0.00016572,2]
[350928092,1738209046884,-502.61539211,0.00016573,2]
[350928093,1738209046894,-162.58481795,0.00016573,2]
[350928094,1738209046903,-577.87865639,0.00016573,2]
[350928095,1738209046915,-502.76136118,0.00016573,2]
[350928096,1738209046924,-502.62444838,0.00016573,2]
[350928097,1738209046934,-503.68928265,0.00016573,2]
[350928098,1738209046943,-504.17911131,0.00016573,2]
[350928099,1738209046953,-500.0,0.00016573,2]
[350928100,1738209046962,-501.81691754,0.00016573,2]
[350928101,1738209046974,-500.0,0.00016573,2]
[350928102,1738209046983,-164.499,0.00016574,2]
[350928103,1738209046993,-913.17,0.00016575,2]
[350928104,1738209047002,-151.0,0.00016575,2]
[350928105,1738209047012,-151.0,0.00016575,2]
[350928106,1738209047021,-151.0,0.00016575,2]
[350928107,1738209047031,-151.0,0.00016575,2]
[350928108,1738209047041,-151.0,0.00016575,2]
[350928109,1738209047050,-151.0,0.00016575,2]
[350928110,1738209047060,-151.0,0.00016575,2]
[350928111,1738209047070,-500.0,0.00016575,2]
[350928112,1738209047079,-500.0,0.00016575,2]
[350928113,1738209047089,-150.11,0.00016575,2]
[350928114,1738209047098,-500.0,0.00016575,2]
[350928115,1738209047107,-500.0,0.00016575,2]
[350928116,1738209047116,-151.0,0.00016575,2]
[350928117,1738209047126,-151.0,0.00016575,2]
[350928118,1738209047137,-500.0,0.00016575,2]
[350928119,1738209047147,-792.96,0.00016575,2]
[350928120,1738209047158,-582.93,0.00016575,2]
[350928121,1738209047168,-500.0,0.00016575,2]
[350928122,1738209047177,-500.0,0.00016575,2]
[350928123,1738209047188,-500.0,0.00016575,2]
[350928124,1738209047199,-524.87213326,0.00016575,2]
[350928125,1738209047210,-500.0,0.00016575,2]
[350928126,1738209047220,-536.94,0.00016575,2]
[350928127,1738209047229,-500.0,0.00016575,2]
[350928128,1738209047240,-500.0,0.00016575,2]
[350928129,1738209047251,-151.0,0.00016575,2]
[350928130,1738209047262,-151.0,0.00016575,2]
[350928131,1738209047272,-500.0,0.00016575,2]
[350928132,1738209047282,-1047.61,0.00016575,2]
[350928133,1738209047291,-622.94,0.00016575,2]
[350928134,1738209047302,-500.0,0.00016575,2]
[350928135,1738209047314,-500.0,0.00016575,2]
[350928136,1738209047327,-506.57569823,0.00016575,2]
[350928137,1738209047337,-500.0,0.00016575,2]
[350928138,1738209047346,-500.0,0.00016575,2]
[350928139,1738209047355,-1288.53,0.00016575,2]
[350928140,1738209047365,-1728.2,0.00016575,2]
[350928141,1738209047375,-542.43,0.00016575,2]
[350928142,1738209047386,-833.99,0.00016575,2]
[350928143,1738209047396,-512.26783054,0.00016575,2]
[350928144,1738209047405,-615.23,0.00016575,2]
[350928145,1738209047415,-533.94,0.00016575,2]
[350928146,1738209047424,-150.11,0.00016575,2]
[350928147,1738209047433,-500.0,0.00016575,2]
[350928148,1738209047444,-515.2775757,0.00016575,2]
[350928149,1738209047455,-1081.71,0.00016575,2]
[350928150,1738209047464,-150.37447202,0.00016575,2]
[350928151,1738209047474,-150.85875784,0.00016575,2]
[350928152,1738209047484,-578.58,0.00016575,2]
[350928153,1738209047495,-500.0,0.00016575,2]
[350928154,1738209047507,-18833.68,0.00016575,2]
[350928155,1738209047518,-150.11,0.00016575,2]
[350928156,1738209047527,-150.11,0.00016575,2]
[350928157,1738209047538,-240.186008,0.00016575,2]
[350928158,1738209047549,-240.186008,0.00016575,2]
[350928159,1738209047559,-1435.56,0.00016575,2]
[350928160,1738209047569,-240.186008,0.00016575,2]
[350928161,1738209047579,-240.186008,0.00016575,2]
[350928162,1738209047589,-1106.24,0.00016575,2]
[350928163,1738209047599,-2144.9,0.00016575,2]
[350928164,1738209047608,-707.88,0.00016575,2]
[350928165,1738209047618,-899.25,0.00016575,2]
[350928166,1738209047628,-151.0,0.00016575,2]
[350928167,1738209047638,-151.0,0.00016575,2]
[350928168,1738209047648,-500.0,0.00016575,2]
[350928169,1738209047658,-512.26096092,0.00016575,2]
[350928170,1738209047667,-718.31,0.00016575,2]
[350928171,1738209047677,-513.08212287,0.00016575,2]
[350928172,1738209047687,-151.0,0.00016575,2]
[350928173,1738209047698,-151.0,0.00016575,2]
[350928174,1738209047707,-722.09,0.00016575,2]
[350928175,1738209047717,-197.835392,0.00016575,2]
[350928176,1738209047727,-500.0,0.00016575,2]
[350928177,1738209047737,-1032.93,0.00016575,2]
[350928178,1738209047747,-500.0,0.00016575,2]
[350928179,1738209047757,-500.0,0.00016575,2]
[350928180,1738209047766,-1972.78,0.00016575,2]
[350928181,1738209047777,-504.49856839,0.00016575,2]
[350928182,1738209047787,-642.024491,0.00016575,2]
[350928183,1738209047797,-642.024491,0.00016575,2]
[350928184,1738209047806,-642.024491,0.00016575,2]
[350928185,1738209047817,-642.024491,0.00016575,2]
[350928186,1738209047827,-1029.2,0.00016575,2]
[350928187,1738209047837,-1012.49,0.00016575,2]
[350928188,1738209047847,-2284.74,0.00016575,2]
[350928189,1738209047858,-151.0,0.00016575,2]
[350928190,1738209047867,-1276.44,0.00016575,2]
[350928191,1738209047877,-151.0,0.00016575,2]
[350928192,1738209047887,-6710.07,0.00016575,2]
[350928193,1738209047896,-667.53,0.00016575,2]
[350928194,1738209047907,-977.82,0.00016575,2]
[350928195,1738209047916,-1736.14,0.00016575,2]
[350928196,1738209047926,-1102.24,0.00016575,2]
[350928197,1738209047935,-151.0,0.00016575,2]
[350928198,1738209047947,-151.0,0.00016575,2]
[350928199,1738209047956,-500.0,0.00016575,2]
[350928200,1738209047966,-510.47655231,0.00016575,2]
[350928201,1738209047975,-156.924049,0.00016575,2]
[350928202,1738209047984,-156.924049,0.00016575,2]
[350928203,1738209047995,-3441.28,0.00016575,2]
[350928204,1738209048006,-156.924049,0.00016575,2]
[350928205,1738209048016,-156.924049,0.00016575,2]
[350928206,1738209048025,-500.0,0.00016575,2]
[350928207,1738209048035,-500.0,0.00016575,2]
[350928208,1738209048044,-987.75,0.00016575,2]
[350928209,1738209048054,-4247.91,0.00016575,2]
[350928210,1738209048063,-3427.15,0.00016575,2]
[350928211,1738209048072,-500.0,0.00016575,2]
[350928212,1738209048081,-6733.07,0.00016575,2]
[350928213,1738209048091,-208.363582,0.00016575,2]
[350928214,1738209048100,-208.363582,0.00016575,2]
[350928215,1738209048109,-208.363582,0.00016575,2]
[350928216,1738209048119,-208.363582,0.00016575,2]
[350928217,1738209048128,-500.0,0.00016575,2]
[350928218,1738209048137,-2062.54,0.00016575,2]
[350928219,1738209048147,-1398.27,0.000166,2]
[350928220,1738209048157,-153.0,0.000166,2]
[350928221,1738209048166,-6099.82966936,0.00016657,2]
[350928222,1738209048176,-151.0,0.000167,2]
[350928223,1738209048185,-150.132568,0.000167,2]
[350928224,1738209048194,-913.17,0.00016712,2]
[350928225,1738209048203,-179.692087,0.00016712,2]
[350928226,1738209048213,-151.0,0.00016712,2]
[350928227,1738209048223,-615.82618875,0.00016712,2]
[350928228,1738209048232,-503.35919055,0.00016712,2]
[350928229,1738209048242,-500.0,0.00016712,2]
[350928230,1738209048252,-500.0,0.00016712,2]
[350928231,1738209048261,-151.0,0.00016712,2]
[350928232,1738209048271,-184.699613,0.00016712,2]
[350928233,1738209048280,-500.0,0.00016712,2]
[350928234,1738209048290,-792.96,0.00016712,2]
[350928235,1738209048300,-582.93,0.00016712,2]
[350928236,1738209048313,-500.0,0.00016712,2]
[350928237,1738209048322,-500.0,0.00016712,2]
[350928238,1738209048331,-500.0,0.00016712,2]
[350928239,1738209048341,-500.0,0.00016712,2]
[350928240,1738209048472,-536.94,0.00016712,2]
[350928241,1738209048482,-500.0,0.00016712,2]
[350928242,1738209048491,-500.0,0.00016712,2]
[350928243,1738209048501,-151.0,0.00016712,2]
[350928244,1738209048510,-151.0,0.00016712,2]
[350928245,1738209048520,-500.0,0.00016712,2]
[350928246,1738209048529,-1047.61,0.00016712,2]
[350928247,1738209048538,-622.94,0.00016712,2]
[350928248,1738209048547,-500.0,0.00016712,2]
[350928249,1738209048557,-500.0,0.00016712,2]
[350928250,1738209048567,-500.0,0.00016712,2]
[350928251,1738209048576,-500.0,0.00016712,2]
[350928252,1738209048585,-1288.53,0.00016712,2]
[350928253,1738209048594,-1728.2,0.00016712,2]
[350928254,1738209048603,-542.43,0.00016712,2]
[350928255,1738209048613,-833.99,0.00016712,2]
[350928256,1738209048632,-615.23,0.00016712,2]
[350928257,1738209048643,-533.94,0.00016712,2]
[350928258,1738209048653,-500.0,0.00016712,2]
[350928259,1738209048664,-1081.71,0.00016712,2]
[350928260,1738209048674,-578.58,0.00016712,2]
[350928261,1738209048684,-18833.68,0.00016712,2]
[350928262,1738209048694,-240.186008,0.00016712,2]
[350928263,1738209048705,-1435.56,0.00016712,2]
[350928264,1738209048715,-240.186008,0.00016712,2]
[350928265,1738209048726,-240.186008,0.00016712,2]
[350928266,1738209048735,-1106.24,0.00016712,2]
[350928267,1738209048746,-240.186008,0.00016712,2]
[350928268,1738209048756,-2144.9,0.00016712,2]
[350928269,1738209048766,-707.88,0.00016712,2]
[350928270,1738209048775,-899.25,0.00016712,2]
[350928271,1738209048785,-151.0,0.00016712,2]
[350928272,1738209048795,-151.0,0.00016712,2]
[350928273,1738209048806,-500.0,0.00016712,2]
[350928274,1738209048815,-718.31,0.00016712,2]
[350928275,1738209048825,-151.0,0.00016712,2]
[350928276,1738209048835,-151.0,0.00016712,2]
[350928277,1738209048844,-722.09,0.00016712,2]
[350928278,1738209048854,-322.09446542,0.00016712,2]
[350928279,1738209048865,-1032.93,0.00016712,2]
[350928280,1738209048875,-500.0,0.00016712,2]
[350928281,1738209048884,-1972.78,0.00016712,2]